fUSD/lending_fUSD_20241207
["ID","MTS","AMOUNT","RATE_DAILY","PERIOD"]
[344528825,1733536324074,-500.0,0.00011505,2]
[344528826,1733536324083,-500.0,0.00011505,2]
[344528827,1733536324093,-500.0,0.00011505,2]
[344528828,1733536324103,-1163.95,0.00011505,2]
[344528829,1733536324113,-500.0,0.00011505,2]
[344528830,1733536324123,-1200.64,0.00011505,2]
[344528831,1733536324135,-500.0,0.00011505,2]
[344528832,1733536324146,-500.0,0.00011505,2]
[344528833,1733536324156,-758.44,0.00011505,2]
[344528834,1733536324166,-2130.51,0.00011505,2]
[344528835,1733536324175,-639.62,0.00011505,2]
[344528836,1733536324185,-587.4095082,0.00011505,2]
[344528837,1733536324195,-500.0,0.00011505,2]
[344528838,1733536324204,-500.0,0.00011505,2]
[344528839,1733536324214,-500.0,0.00011505,2]
[344528840,1733536324224,-541.83,0.00011505,2]
[344528841,1733536324234,-500.0,0.00011505,2]
[344528842,1733536324244,-500.0,0.00011505,2]
[344528843,1733536324254,-735.14,0.00011505,2]
[344528844,1733536324264,-319.00765,0.00011505,2]
[344528845,1733536324274,-601.5210627,0.00011505,2]
[344528846,1733536324283,-1954.45,0.00011505,2]
[344528847,1733536324294,-782.84,0.00011505,2]
[344528848,1733536324304,-500.0,0.00011505,2]
[344528849,1733536324314,-500.0,0.00011505,2]
[344528850,1733536324323,-503.74,0.00011505,2]
[344528851,1733536324333,-2507.35,0.00011505,2]
[344528852,1733536324343,-500.0,0.00011505,2]
[344528853,1733536324354,-639.51854939,0.00011505,2]
[344528854,1733536324364,-500.0,0.00011505,2]
[344528855,1733536324373,-500.0,0.00011505,2]
[344528856,1733536324386,-500.0,0.00011505,2]
[344528857,1733536324398,-500.0,0.00011505,2]
[344528858,1733536324408,-1670.54,0.00011505,2]
[344528859,1733536324418,-500.0,0.00011505,2]
[344528860,1733536324427,-3627.1,0.00011505,2]
[344528861,1733536324436,-637.28,0.00011505,2]
[344528862,1733536324446,-2426.48,0.00011505,2]
[344528863,1733536324455,-500.0,0.00011505,2]
[344528864,1733536324593,-835.68,0.00011505,2]
[344528865,1733536324612,-500.0,0.00011505,2]
[344528866,1733536324621,-628.51,0.00011505,2]
[344528867,1733536324633,-500.0,0.00011505,2]
[344528868,1733536324642,-553.52,0.00011505,2]
[344528869,1733536324652,-500.0,0.00011505,2]
[344528870,1733536324662,-1240.03,0.00011505,2]
[344528871,1733536324671,-1044.07,0.00011505,2]
[344528872,1733536324681,-1404.78,0.00011505,2]
[344528873,1733536324691,-500.0,0.00011505,2]
[344528874,1733536324700,-1794.48,0.00011505,2]
[344528875,1733536324710,-1613.0,0.00011505,2]
[344528876,1733536324720,-500.0,0.00011505,2]
[344528877,1733536324729,-500.0,0.00011505,2]
[344528878,1733536324739,-762.01,0.00011505,2]
[344528879,1733536324748,-1379.89,0.00011505,2]
[344528880,1733536324758,-1019.21,0.00011505,2]
[344528881,1733536324767,-1651.01,0.00011505,2]
[344528882,1733536324776,-500.0,0.00011505,2]
[344528883,1733536324785,-744.38,0.00011505,2]
[344528884,1733536324794,-217.33977125,0.00011505,2]
[344528885,1733536324803,-1915.65,0.00011505,2]
[344528886,1733536324812,-834.64,0.00011505,2]
[344528887,1733536324821,-966.56,0.00011505,2]
[344528888,1733536324831,-500.0,0.00011505,2]
[344528889,1733536324840,-506.32745712,0.00011505,2]
[344528890,1733536324852,-500.0,0.00011505,2]
[344528891,1733536324861,-500.0,0.00011505,2]
[344528892,1733536324871,-500.0,0.00011505,2]
[344528893,1733536324883,-1214.3,0.00011505,2]
[344528894,1733536324892,-705.76,0.00011505,2]
[344528895,1733536324902,-533.65,0.00011505,2]
[344528896,1733536324912,-500.0,0.00011505,2]
[344528897,1733536324922,-500.0,0.00011505,2]
[344528898,1733536324931,-500.0,0.00011505,2]
[344528899,1733536324941,-500.0,0.00011505,2]
[344528900,1733536324951,-500.0,0.00011505,2]
[344528901,1733536324961,-1406.31,0.00011505,2]
[344528902,1733536324970,-594.92,0.00011505,2]
[344528903,1733536324980,-500.0,0.00011505,2]
[344528904,1733536324990,-500.0,0.00011505,2]
[344528905,1733536325000,-2050.62,0.00011505,2]
[344528906,1733536325010,-524.61,0.00011505,2]
[344528907,1733536325023,-708.93,0.00011505,2]
[344528908,1733536325033,-1573.14,0.00011505,2]
[344528909,1733536325042,-644.61,0.00011505,2]
[344528910,1733536325052,-828.88,0.00011505,2]
[344528911,1733536325062,-500.0,0.00011505,2]
[344528912,1733536325072,-500.0,0.00011505,2]
[344528913,1733536325082,-500.0,0.00011505,2]
[344528914,1733536325093,-591.34,0.00011505,2]
[344528915,1733536325103,-962.21,0.00011505,2]
[344528916,1733536325113,-171.55266919,0.00011505,2]
[344528917,1733536325122,-500.0,0.00011505,2]
[344528918,1733536325134,-500.0,0.00011505,2]
[344528919,1733536325144,-500.0,0.00011505,2]
[344528920,1733536325154,-727.36,0.00011505,2]
[344528921,1733536325164,-500.0,0.00011505,2]
[344528922,1733536325173,-500.0,0.00011505,2]
[344528923,1733536325184,-1695.75,0.00011505,2]
[344528924,1733536325194,-500.0,0.00011505,2]
[344528925,1733536325204,-500.0,0.00011505,2]
[344528926,1733536325214,-500.0,0.00011505,2]
[344528927,1733536325225,-500.0,0.00011505,2]
[344528928,1733536325235,-500.0,0.00011505,2]
[344528929,1733536325246,-500.0,0.00011505,2]
[344528930,1733536325256,-807.12,0.00011505,2]
[344528931,1733536325266,-500.0,0.00011505,2]
[344528932,1733536325276,-500.0,0.00011505,2]
[344528933,1733536325286,-1094.72,0.00011505,2]
[344528934,1733536325296,-500.0,0.00011505,2]
[344528935,1733536325305,-1072.02,0.00011505,2]
[344528936,1733536325315,-9961.93,0.00011505,2]
[344528937,1733536325325,-2541.91,0.00011505,2]
[344528938,1733536325335,-1111.7,0.00011505,2]
[344528939,1733536325344,-883.19,0.00011505,2]
[344528940,1733536325354,-654.68,0.00011505,2]
[344528941,1733536325364,-500.0,0.00011505,2]
[344528942,1733536325374,-652.62,0.00011505,2]
[344528943,1733536325386,-897.52,0.00011505,2]
[344528944,1733536325396,-1954.67,0.00011505,2]
[344528945,1733536325406,-1297.46,0.00011505,2]
[344528946,1733536325416,-500.0,0.00011505,2]
[344528947,1733536325425,-2400.98,0.00011505,2]
[344528948,1733536325435,-500.0,0.00011505,2]
[344528949,1733536325445,-1492.09,0.00011505,2]
[344528950,1733536325454,-500.0,0.00011505,2]
[344528951,1733536325464,-1153.18,0.00011505,2]
[344528952,1733536325474,-3028.83,0.00011505,2]
[344528953,1733536325484,-500.0,0.00011505,2]
[344528954,1733536325493,-500.0,0.00011505,2]
[344528955,1733536325503,-500.0,0.00011505,2]
[344528956,1733536325513,-620.79,0.00011505,2]
[344528957,1733536325522,-566.85,0.00011505,2]
[344528958,1733536325532,-10531.06,0.00011505,2]
[344528959,1733536325542,-500.0,0.00011505,2]
[344528960,1733536325552,-1407.02,0.00011505,2]
[344528961,1733536325561,-500.0,0.00011505,2]
[344528962,1733536325571,-1426.66,0.00011505,2]
[344528963,1733536325581,-2365.74,0.00011505,2]
[344528964,1733536325590,-998.54,0.00011505,2]
[344528965,1733536325600,-500.0,0.00011505,2]
[344528966,1733536325609,-2446.0,0.00011505,2]
[344528967,1733536325626,-500.0,0.00011505,2]
[344528968,1733536325642,-1369.81,0.00011505,2]
[344528969,1733536325653,-934.38,0.00011505,2]
[344528970,1733536325663,-500.0,0.00011505,2]
[344528971,1733536325674,-500.0,0.00011505,2]
[344528972,1733536325684,-500.0,0.00011505,2]
[344528973,1733536325694,-500.0,0.00011505,2]
[344528974,1733536325705,-738.72,0.00011505,2]
[344528975,1733536325715,-500.0,0.00011505,2]
[344528976,1733536325725,-500.0,0.00011505,2]
[344528977,1733536325735,-1236.15,0.00011505,2]
[344528978,1733536325745,-918.81,0.00011505,2]
[344528979,1733536325755,-1259.46,0.00011505,2]
[344528980,1733536325765,-500.0,0.00011505,2]
[344528981,1733536325775,-961.29,0.00011505,2]
[344528982,1733536325785,-1580.55,0.00011505,2]
[344528983,1733536325795,-500.0,0.00011505,2]
[344528984,1733536325805,-500.0,0.00011505,2]
[344528985,1733536325815,-1658.82,0.00011505,2]
[344528986,1733536325826,-2076.32,0.00011505,2]
[344528987,1733536325835,-500.0,0.00011505,2]
[344528988,1733536325846,-500.0,0.00011505,2]
[344528989,1733536325856,-5834.62,0.00011505,2]
[344528990,1733536325866,-500.0,0.00011505,2]
[344528991,1733536325877,-726.18,0.00011505,2]
[344528992,1733536325889,-636.56,0.00011505,2]
[344528993,1733536325899,-500.0,0.00011505,2]
[344528994,1733536325910,-500.0,0.00011505,2]
[344528995,1733536325920,-653.92,0.00011505,2]
[344528996,1733536325931,-1262.13,0.00011505,2]
[344528997,1733536325941,-985.05,0.00011505,2]
[344528998,1733536325951,-908.51,0.00011505,2]
[344528999,1733536325961,-869.32,0.00011505,2]
[344529000,1733536325971,-500.0,0.00011505,2]
[344529001,1733536325982,-500.0,0.00011505,2]
[344529002,1733536325993,-500.0,0.00011505,2]
[344529003,1733536326003,-500.0,0.00011506,2]
[344529004,1733536326014,-150.0,0.00011506,2]
[344529005,1733536326029,-500.0,0.00011506,2]
[344529006,1733536326039,-500.0,0.00011506,2]
[344529007,1733536326050,-1449.0,0.00011506,2]
[344529008,1733536326061,-500.0,0.00011506,2]
[344529009,1733536326071,-3618.33,0.00011506,2]
[344529010,1733536326083,-500.0,0.00011506,2]
[344529011,1733536326093,-990.12,0.00011506,2]
[344529012,1733536326105,-500.0,0.00011506,2]
[344529013,1733536326115,-610.64446614,0.00011506,2]
[344529014,1733536326125,-1010.91,0.00011506,2]
[344529015,1733536326139,-361.99945862,0.00011506,2]
[344529016,1733536326148,-1180.33,0.00011506,2]
[344529017,1733536326159,-500.0,0.00011506,2]
[344529018,1733536326170,-637.63,0.00011506,2]
[344529019,1733536326180,-903.24,0.00011506,2]
[344529020,1733536326191,-1081.3,0.00011506,2]
[344529021,1733536326202,-1231.81,0.00011506,2]
[344529022,1733536326212,-1080.58,0.00011506,2]
[344529023,1733536326222,-500.0,0.00011506,2]
[344529024,1733536326232,-2311.91,0.00011506,2]
[344529025,1733536326242,-500.0,0.00011506,2]
[344529026,1733536326252,-1160.55,0.00011506,2]
[344529027,1733536326261,-553.68,0.00011506,2]
[344529028,1733536326271,-500.0,0.00011506,2]
[344529029,1733536326282,-692.9,0.00011506,2]
[344529030,1733536326292,-458.38123425,0.00011506,2]
[344529031,1733536326302,-1316.86,0.00011506,2]
[344529032,1733536326312,-945.34,0.00011506,2]
[344529033,1733536326322,-500.0,0.00011506,2]
[344529034,1733536326332,-865.87,0.00011506,2]
[344529035,1733536326342,-500.0,0.00011506,2]
[344529036,1733536326351,-2197.67,0.00011506,2]
[344529037,1733536326361,-1705.69,0.00011506,2]
[344529038,1733536326372,-1267.06,0.00011506,2]
[344529039,1733536326385,-1414.49,0.00011506,2]
[344529040,1733536326395,-1616.63,0.00011506,2]
[344529041,1733536326404,-2472.9,0.00011506,2]
[344529042,1733536326414,-1973.18,0.00011506,2]
[344529043,1733536326423,-1808.78,0.00011506,2]
[344529044,1733536326433,-765.64,0.00011506,2]
[344529045,1733536326443,-1450.65,0.00011506,2]
[344529046,1733536326452,-1036.41,0.00011506,2]
[344529047,1733536326463,-1048.28,0.00011506,2]
[344529048,1733536326473,-1201.84,0.00011506,2]
[344529049,1733536326484,-593.82,0.00011506,2]
[344529050,1733536326495,-500.0,0.00011506,2]
[344529051,1733536326507,-500.0,0.00011506,2]
[344529052,1733536326517,-875.63,0.00011506,2]
[344529053,1733536326526,-863.77,0.00011506,2]
[344529054,1733536326536,-935.91,0.00011506,2]
[344529055,1733536326546,-500.0,0.00011506,2]
[344529056,1733536326556,-1027.36,0.00011506,2]
[344529057,1733536326566,-804.35,0.00011506,2]
[344529058,1733536326575,-1311.72,0.00011506,2]
[344529059,1733536326585,-819.23,0.00011506,2]
[344529060,1733536326596,-1315.73,0.00011506,2]
[344529061,1733536326605,-960.54,0.00011506,2]
[344529062,1733536326616,-1551.33,0.00011506,2]
[344529063,1733536326626,-2751.0,0.00011507,2]
[344529064,1733536326639,-474.32,0.00011521,2]
[344529065,1733536326649,-3172.28767699,0.00011535,2]
[344529066,1733536326659,-171.15,0.00011542,2]
[344529067,1733536326669,-838.85,0.00011641,2]
[344529068,1733536326680,-3000.0,0.0001168,2]
[344529069,1733536326689,-389.04525488,0.00011682,2]
[344529070,1733536326699,-1762.44390139,0.00011741,2]
[344529071,1733536326708,-171.87,0.00011767,2]
[344529072,1733536326718,-500.0,0.00011776,2]
[344529073,1733536326728,-500.0,0.00011776,2]
[344529074,1733536326737,-500.0,0.00011776,2]
[344529075,1733536326747,-584.42,0.00011776,2]
[344529076,1733536326756,-500.0,0.00011777,2]
[344529077,1733536327122,-500.0,0.00011777,2]
[344529078,1733536327137,-500.0,0.00011777,2]
[344529079,1733536327148,-1237.14,0.00011777,2]
[344529080,1733536327159,-500.0,0.00011777,2]
[344529081,1733536327170,-500.0,0.00011777,2]
[344529082,1733536327180,-500.0,0.00011777,2]
[344529083,1733536327191,-578.46,0.00011777,2]
[344529084,1733536327201,-500.0,0.00011777,2]
[344529085,1733536327211,-500.0,0.00011777,2]
[344529086,1733536327221,-500.0,0.00011777,2]
[344529087,1733536327230,-1472.55,0.00011777,2]
[344529088,1733536327240,-500.0,0.00011777,2]
[344529089,1733536327250,-500.0,0.00011777,2]
[344529090,1733536327260,-500.0,0.00011777,2]
[344529091,1733536327270,-500.0,0.00011777,2]
[344529092,1733536327280,-500.0,0.00011777,2]
[344529093,1733536327290,-500.0,0.00011777,2]
[344529094,1733536327299,-500.0,0.00011777,2]
[344529095,1733536327309,-500.0,0.00011777,2]
[344529096,1733536327319,-1921.93,0.00011777,2]
[344529097,1733536327328,-6459.48,0.00011777,2]
[344529098,1733536327338,-665.33,0.00011777,2]
[344529099,1733536327348,-2738.63,0.00011777,2]
[344529100,1733536327358,-2307.66,0.00011777,2]
[344529101,1733536327367,-500.0,0.00011777,2]
[344529102,1733536327377,-500.0,0.00011777,2]
[344529103,1733536327391,-659.29,0.00011777,2]
[344529104,1733536327401,-940.36,0.00011777,2]
[344529105,1733536327411,-500.0,0.00011777,2]
[344529106,1733536327421,-500.0,0.00011777,2]
[344529107,1733536327431,-1443.28,0.00011777,2]
[344529108,1733536327441,-509.51,0.00011777,2]
[344529109,1733536327452,-1435.98,0.00011777,2]
[344529110,1733536327462,-1025.19,0.00011777,2]
[344529111,1733536327472,-747.69,0.00011777,2]
[344529112,1733536327482,-500.0,0.00011777,2]
[344529113,1733536327493,-500.0,0.00011777,2]
[344529114,1733536327503,-2814.44,0.00011777,2]
[344529115,1733536327513,-7132.51,0.00011777,2]
[344529116,1733536327522,-500.0,0.00011777,2]
[344529117,1733536327532,-500.0,0.00011777,2]
[344529118,1733536327542,-500.0,0.00011777,2]
[344529119,1733536327552,-500.0,0.00011777,2]
[344529120,1733536327562,-2554.24,0.00011777,2]
[344529121,1733536327572,-500.0,0.00011777,2]
[344529122,1733536327582,-862.89,0.00011777,2]
[344529123,1733536327591,-1419.95,0.00011777,2]
[344529124,1733536327601,-500.0,0.00011777,2]
[344529125,1733536327611,-824.51,0.00011777,2]
[344529126,1733536327620,-901.61,0.00011777,2]
[344529127,1733536327632,-1511.62,0.00011777,2]
[344529128,1733536327642,-500.0,0.00011777,2]
[344529129,1733536327652,-2377.17,0.00011777,2]
[344529130,1733536327662,-8848.27,0.00011777,2]
[344529131,1733536327671,-2208.06,0.00011777,2]
[344529132,1733536327681,-712.8,0.00011777,2]
[344529133,1733536327691,-500.0,0.00011777,2]
[344529134,1733536327701,-4591.69,0.00011777,2]
[344529135,1733536327711,-2710.3,0.00011777,2]
[344529136,1733536327721,-500.0,0.00011777,2]
[344529137,1733536327731,-500.0,0.00011777,2]
[344529138,1733536327740,-676.57,0.00011777,2]
[344529139,1733536327750,-1680.28,0.00011777,2]
[344529140,1733536327759,-500.0,0.00011777,2]
[344529141,1733536327769,-500.0,0.00011777,2]
[344529142,1733536327779,-1432.11,0.00011777,2]
[344529143,1733536327788,-500.0,0.00011777,2]
[344529144,1733536327798,-4646.7,0.00011777,2]
[344529145,1733536327808,-15013.49,0.00011777,2]
[344529146,1733536327818,-564.83,0.00011777,2]
[344529147,1733536327828,-4871.52,0.00011777,2]
[344529148,1733536327838,-772.76,0.00011777,2]
[344529149,1733536327848,-500.0,0.00011777,2]
[344529150,1733536327858,-815.03,0.00011777,2]
[344529151,1733536327868,-2380.55,0.00011777,2]
[344529152,1733536327878,-1815.68,0.00011777,2]
[344529153,1733536327894,-500.0,0.00011777,2]
[344529154,1733536327904,-500.0,0.00011777,2]
[344529155,1733536327914,-2128.7,0.00011777,2]
[344529156,1733536327923,-1530.78,0.00011777,2]
[344529157,1733536327933,-16965.0,0.00011777,2]
[344529158,1733536327942,-1604.96,0.00011777,2]
[344529159,1733536327952,-500.0,0.00011777,2]
[344529160,1733536327962,-500.0,0.00011777,2]
[344529161,1733536327972,-619.51,0.00011777,2]
[344529162,1733536327982,-500.0,0.00011777,2]
[344529163,1733536327992,-1502.86,0.00011777,2]
[344529164,1733536328002,-7902.9,0.00011777,2]
[344529165,1733536328012,-500.0,0.00011777,2]
[344529166,1733536328026,-500.0,0.00011777,2]
[344529167,1733536328037,-1008.12,0.00011777,2]
[344529168,1733536328046,-502.28,0.00011777,2]
[344529169,1733536328056,-500.0,0.00011777,2]
[344529170,1733536328065,-500.0,0.00011777,2]
[344529171,1733536328075,-979.79,0.00011777,2]
[344529172,1733536328084,-944.37,0.00011777,2]
[344529173,1733536328094,-653.04,0.00011777,2]
[344529174,1733536328104,-500.0,0.00011777,2]
[344529175,1733536328115,-1333.83,0.00011777,2]
[344529176,1733536328124,-500.0,0.00011777,2]
[344529177,1733536328136,-500.0,0.00011777,2]
[344529178,1733536328146,-707.74,0.00011777,2]
[344529179,1733536328155,-500.0,0.00011777,2]
[344529180,1733536328165,-500.0,0.00011777,2]
[344529181,1733536328175,-500.0,0.00011777,2]
[344529182,1733536328185,-1395.45,0.00011777,2]
[344529183,1733536328195,-1391.91,0.00011777,2]
[344529184,1733536328205,-500.0,0.00011777,2]
[344529185,1733536328215,-500.0,0.00011777,2]
[344529186,1733536328226,-947.41,0.00011777,2]
[344529187,1733536328236,-500.0,0.00011777,2]
[344529188,1733536328246,-1361.4,0.00011777,2]
[344529189,1733536328256,-500.0,0.00011777,2]
[344529190,1733536328266,-2140.86,0.00011777,2]
[344529191,1733536328276,-1620.87,0.00011777,2]
[344529192,1733536328286,-500.0,0.00011777,2]
[344529193,1733536328295,-500.0,0.00011777,2]
[344529194,1733536328306,-453.89,0.00011777,2]
[344529195,1733536328315,-500.0,0.00011777,2]
[344529196,1733536328325,-500.0,0.00011777,2]
[344529197,1733536328335,-500.0,0.00011778,2]
[344529198,1733536328344,-500.0,0.00011778,2]
[344529199,1733536328354,-500.0,0.00011778,2]
[344529200,1733536328365,-504.07702159,0.00011778,2]
[344529201,1733536328374,-501.10400388,0.00011778,2]
[344529202,1733536328385,-1973.59,0.00011778,2]
[344529203,1733536328395,-919.96,0.00011778,2]
[344529204,1733536328404,-500.0,0.00011778,2]
[344529205,1733536328414,-2028.99,0.00011778,2]
[344529206,1733536328423,-500.0,0.00011778,2]
[344529207,1733536328433,-1957.15,0.00011778,2]
[344529208,1733536328443,-500.0,0.00011778,2]
[344529209,1733536328453,-500.0,0.00011778,2]
[344529210,1733536328463,-1074.67,0.00011778,2]
[344529211,1733536328472,-500.0,0.00011778,2]
[344529212,1733536328482,-1596.59,0.00011778,2]
[344529213,1733536328491,-500.0,0.00011778,2]
[344529214,1733536328500,-500.0,0.00011778,2]
[344529215,1733536328510,-500.0,0.00011778,2]
[344529216,1733536328520,-534.65,0.00011778,2]
[344529217,1733536328529,-500.0,0.00011778,2]
[344529218,1733536328540,-500.0,0.00011778,2]
[344529219,1733536328549,-1462.96,0.00011778,2]
[344529220,1733536328560,-500.0,0.00011778,2]
[344529221,1733536328570,-550.36511384,0.00011778,2]
[344529222,1733536328580,-500.0,0.00011778,2]
[344529223,1733536328590,-500.0,0.00011778,2]
[344529224,1733536328599,-500.0,0.00011778,2]
[344529225,1733536328610,-357.219524,0.00011778,2]
[344529226,1733536328619,-500.0,0.00011778,2]
[344529227,1733536328628,-854.27,0.00011778,2]
[344529228,1733536328639,-500.0,0.00011778,2]
[344529229,1733536328649,-500.0,0.00011778,2]
[344529230,1733536328658,-549.65641173,0.00011778,2]
[344529231,1733536328667,-952.41,0.00011778,2]
[344529232,1733536328676,-500.0,0.00011778,2]
[344529233,1733536328686,-500.0,0.00011778,2]
[344529234,1733536328695,-1923.16,0.00011778,2]
[344529235,1733536328705,-1220.83,0.00011778,2]
[344529236,1733536328715,-500.0,0.00011778,2]
[344529237,1733536328725,-500.0,0.00011778,2]
[344529238,1733536328735,-1173.25,0.00011778,2]
[344529239,1733536328745,-499.95426961,0.00011778,2]
[344529240,1733536328754,-500.0,0.00011778,2]
[344529241,1733536328763,-500.0,0.00011778,2]
[344529242,1733536328772,-493.20814398,0.00011778,2]
[344529243,1733536328782,-1427.49,0.00011778,2]
[344529244,1733536328792,-500.0,0.00011778,2]
[344529245,1733536328802,-1132.29,0.00011778,2]
[344529246,1733536328812,-500.0,0.00011778,2]
[344529247,1733536328821,-1988.24,0.00011778,2]
[344529248,1733536328831,-2268.55,0.00011778,2]
[344529249,1733536328841,-500.0,0.00011778,2]
[344529250,1733536328851,-500.0,0.00011778,2]
[344529251,1733536328861,-1649.72,0.00011778,2]
[344529252,1733536328871,-500.0,0.00011778,2]
[344529253,1733536328880,-838.85,0.00011778,2]
[344529254,1733536328891,-1204.84,0.00011778,2]
[344529255,1733536328901,-500.0,0.00011778,2]
[344529256,1733536328911,-1419.07,0.00011778,2]
[344529257,1733536328920,-672.22,0.00011778,2]
[344529258,1733536328930,-500.0,0.00011778,2]
[344529259,1733536328940,-500.0,0.00011778,2]
[344529260,1733536328950,-500.0,0.00011778,2]
[344529261,1733536328959,-1429.7,0.00011778,2]
[344529262,1733536328969,-500.0,0.00011778,2]
[344529263,1733536328978,-1164.95,0.00011778,2]
[344529264,1733536328988,-500.0,0.00011778,2]
[344529265,1733536328997,-1139.75,0.00011778,2]
[344529266,1733536329007,-500.0,0.00011778,2]
[344529267,1733536329018,-500.0,0.00011778,2]
[344529268,1733536329031,-500.0,0.00011778,2]
[344529269,1733536329040,-500.0,0.00011778,2]
[344529270,1733536329050,-874.05,0.00011778,2]
[344529271,1733536329061,-788.76,0.00011778,2]
[344529272,1733536329071,-154.2965165,0.00011778,2]
[344529273,1733536329081,-500.0,0.00011778,2]
[344529274,1733536329091,-500.0,0.00011778,2]
[344529275,1733536329103,-500.0,0.00011778,2]
[344529276,1733536329113,-2270.59,0.00011778,2]
[344529277,1733536329123,-183.53213706,0.00011778,2]
[344529278,1733536329133,-821.23,0.00011778,2]
[344529279,1733536329143,-500.0,0.00011778,2]
[344529280,1733536329153,-1579.83,0.00011778,2]
[344529281,1733536329162,-500.0,0.00011778,2]
[344529282,1733536329172,-500.0,0.00011778,2]
[344529283,1733536329182,-500.0,0.00011778,2]
[344529284,1733536329191,-693.82,0.00011778,2]
[344529285,1733536329201,-1496.96,0.00011778,2]
[344529286,1733536329210,-500.0,0.00011778,2]
[344529287,1733536329220,-1337.46,0.00011778,2]
[344529288,1733536329230,-1067.55,0.00011778,2]
[344529289,1733536329239,-337.76904175,0.00011778,2]
[344529290,1733536329248,-909.31,0.00011778,2]
[344529291,1733536329258,-500.0,0.00011778,2]
[344529292,1733536329267,-1306.23,0.00011778,2]
[344529293,1733536329276,-329.52326879,0.00011778,2]
[344529294,1733536329286,-4172.15,0.00011778,2]
[344529295,1733536329295,-500.0,0.00011778,2]
[344529296,1733536329305,-3682.15,0.00011778,2]
[344529297,1733536329315,-500.0,0.00011778,2]
[344529298,1733536329324,-2451.74,0.00011778,2]
[344529299,1733536329333,-500.0,0.00011778,2]
[344529300,1733536329343,-1388.88,0.00011778,2]
[344529301,1733536329352,-500.0,0.00011778,2]
[344529302,1733536329362,-873.88,0.00011778,2]
[344529303,1733536329371,-807.12,0.00011778,2]
[344529304,1733536329380,-500.0,0.00011778,2]
[344529305,1733536329391,-12615.43,0.00011778,2]
[344529306,1733536329400,-531.19,0.00011778,2]
[344529307,1733536329410,-1534.76,0.00011778,2]
[344529308,1733536329420,-1375.96,0.00011778,2]
[344529309,1733536329429,-3418.5,0.00011778,2]
[344529310,1733536329439,-3762.16,0.00011778,2]
[344529311,1733536329448,-1672.75,0.00011778,2]
[344529312,1733536329458,-1386.08,0.00011778,2]
[344529313,1733536329467,-500.0,0.00011778,2]
[344529314,1733536329477,-5487.01,0.00011778,2]
[344529315,1733536329556,-1319.83,0.00011778,2]
[344529316,1733536329566,-1615.88,0.00011778,2]
[344529317,1733536329575,-500.0,0.00011778,2]
[344529318,1733536329585,-3508.25,0.00011778,2]
[344529319,1733536329595,-1212.79,0.00011778,2]
[344529320,1733536329604,-500.0,0.00011778,2]
[344529321,1733536329613,-3134.44,0.00011778,2]
[344529322,1733536329623,-500.0,0.00011778,2]
[344529323,1733536329632,-1417.37,0.00011778,2]
[344529324,1733536329642,-2607.01,0.00011778,2]